bitfinex/quotes_SOLUSD_20251116
["timestamp","ask_amount","ask_price","bid_price","bid_amount"]
[1763298003338,0.71,140.15,140.1,24.98197755]
[1763298005451,0.71,140.15,140.1,17.84439685]
[1763298006039,0.71,140.15,140.09,7.13826825]
[1763298006240,0.71,140.15,140.09,24.98393889]
[1763298008433,12.64496453,140.15,140.08,16.92746646]
[1763298008633,12.64496453,140.15,140.08,7.13863877]
[1763298008634,104.2,140.14,140.08,7.13863877]
[1763298008856,104.2,140.13,140.03,9.78882769]
[1763298009041,104.2,140.12,140.03,57.43434586]
[1763298009243,104.91,140.12,140.07,9.78882769]
[1763298009750,104.2,140.12,140.08,24.98572244]
[1763298009950,0.71,140.13,140.09,9.78882769]
[1763298010153,0.71,140.15,140.09,9.78882769]
[1763298010336,0.71,140.14,140.09,9.78882769]
[1763298011240,104.2,140.17,140.09,9.78882769]
[1763298011542,0.71,140.16,140.11,9.78882769]
[1763298011935,22.6512,140.18,140.11,9.78882769]
[1763298012131,0.71,140.18,140.11,9.78882769]
[1763298012331,0.71,140.17,140.11,9.78882769]
[1763298014441,0.71,140.17,140.12,24.97858977]
[1763298016463,0.71,140.17,140.14,24.97502497]
[1763298016646,4.79517639,140.21,140.14,24.97502497]
[1763298016844,0.67,140.18,140.14,24.97502497]
[1763298017452,4.79517639,140.21,140.14,60.65363207]
[1763298017655,0.67,140.2,140.14,60.65363207]
[1763298018561,29.98297945,140.22,140.14,60.65363207]
[1763298018562,0.2,140.22,140.15,9.78882769]
[1763298018750,0.67,140.21,140.15,9.78882769]
[1763298020546,0.67,140.21,140.17,9.78882769]
[1763298021342,0.67,140.21,140.16,24.97146118]
[1763298022760,0.67,140.21,140.16,7.13470319]
[1763298024061,0.67,140.21,140.15,9.78882769]
[1763298025974,0.67,140.21,140.16,24.97146118]
[1763298036183,0.2,140.22,140.16,60.64497716]
[1763298036485,0.67,140.21,140.16,60.64497716]
[1763298037191,0.67,140.21,140.17,9.78882769]
[1763298037358,0.87,140.22,140.17,9.78882769]
[1763298038590,0.87,140.22,140.18,24.96789841]
[1763298038887,0.67,140.21,140.18,24.96789841]
[1763298048306,0.66,140.24,140.19,9.78882769]
[1763298049571,0.66,140.24,140.2,60.62767473]
[1763298050061,4.98734434,140.29,140.2,60.62767473]
[1763298050266,0.66,140.25,140.2,60.62767473]
[1763298050695,0.66,140.25,140.21,9.78882769]
[1763298050870,0.66,140.26,140.21,30.84506618]
[1763298051971,0.66,140.26,140.22,60.61902722]
[1763298054600,0.66,140.28,140.23,9.78882769]
[1763298055485,0.2,140.29,140.23,9.78882769]
[1763298055673,0.86,140.29,140.23,9.78882769]
[1763298056295,0.86,140.29,140.24,60.6103822]
[1763298056476,0.86,140.29,140.25,9.78882769]
[1763298056994,0.2,140.29,140.25,9.78882769]
[1763298057203,1e-08,140.29,140.25,9.78882769]
[1763298058403,1e-08,140.29,140.27,9.78882769]
[1763298060274,1e-08,140.29,140.28,16.91742763]
[1763298061196,0.66000001,140.29,140.28,7.12859994]
[1763298062202,0.66000001,140.29,140.26,24.95365748]
[1763298062402,0.66000001,140.29,140.26,7.12961642]
[1763298063378,0.66000001,140.29,140.22,24.96077591]
[1763298064279,23.31120001,140.29,140.22,24.96077591]
[1763298064676,0.66,140.28,140.22,24.96077591]
[1763298065292,0.66,140.28,140.22,7.13165026]
[1763298065501,0.66,140.28,140.21,24.96244351]
[1763298065685,22.08933676,140.28,140.21,24.96244351]
[1763298066089,23.3112,140.27,140.21,24.96244351]
[1763298066478,0.66,140.26,140.2,9.78882769]
[1763298068386,0.66,140.26,140.21,60.62335068]
[1763298068594,0.66,140.26,140.22,9.78882769]
[1763298071607,0.66,140.26,140.23,24.95899592]
[1763298072386,22.65120001,140.29,140.23,24.95899592]
[1763298072626,1e-08,140.29,140.24,9.78882769]
[1763298072912,0.66,140.28,140.24,9.78882769]
[1763298073690,0.66,140.28,140.25,24.95543671]
[1763298078214,1e-08,140.29,140.25,60.60606059]
[1763298078913,0.71000001,140.29,140.25,60.60606059]
[1763298081720,0.71000001,140.29,140.24,7.13057949]
[1763298081899,0.71000001,140.29,140.24,24.95716249]
[1763298083918,0.71000001,140.29,140.24,17.826583]
[1763298084622,0.71000001,140.29,140.23,7.13114169]
[1763298085020,22.13627576,140.29,140.23,7.13114169]
[1763298085403,0.71,140.28,140.23,7.13114169]
[1763298085626,0.71,140.28,140.23,24.95899592]
[1763298086328,0.71,140.28,140.23,17.82785423]
[1763298087109,0.71,140.28,140.22,7.13165026]
[1763298087110,7.83872991,140.28,140.22,7.13165026]
[1763298087413,0.71,140.28,140.22,24.96077591]
[1763298087604,0.71,140.27,140.22,24.96077591]
[1763298090431,0.71,140.27,140.22,7.13165026]
[1763298091326,0.71,140.27,140.22,24.96077591]
[1763298093330,0.71,140.27,140.21,22.6512]
[1763298093331,104.2,140.26,140.14,61.8]
[1763298093647,4.80026533,140.25,140.18,22.6512]
[1763298093835,0.71,140.25,140.18,22.6512]
[1763298094128,0.71,140.24,140.18,22.6512]
[1763298094336,0.71,140.24,140.19,24.9661174]
[1763298100749,0.71,140.24,140.11,7.1372493]
[1763298100750,37.23392021,140.23,140.11,7.1372493]
[1763298100955,37.23392021,140.23,140.07,35.79455385]
[1763298100956,4.79389252,140.22,140.09,7.13778398]
[1763298101123,22.6512,140.17,140.09,7.13778398]
[1763298101551,0.71,140.16,140.09,7.13778398]
[1763298102260,7.8447434,140.16,140.08,7.13877784]
[1763298102424,0.71,140.15,140.08,7.13877784]
[1763298103431,0.71,140.15,140.08,24.98572244]
[1763298104046,22.15772117,140.15,140.08,24.98572244]
[1763298104435,29.29339312,140.15,140.08,17.8469446]
[1763298104633,0.66,140.14,140.08,17.8469446]
[1763298107751,0.66,140.15,140.09,9.78882769]
[1763298109254,0.66,140.16,140.09,9.78882769]
[1763298109754,0.66,140.16,140.1,24.98215559]
[1763298121969,0.66,140.18,140.11,9.78882769]
[1763298122137,7.12961642,140.26,140.15,9.78882769]
[1763298122344,0.66,140.21,140.16,24.97146118]
[1763298123163,0.66,140.21,140.17,9.78882769]
[1763298123364,0.66,140.24,140.17,32.44002769]
[1763298124466,0.66,140.24,140.19,9.78882769]
[1763298127073,0.66,140.24,140.2,24.96433665]
[1763298127967,0.66,140.26,140.21,9.78882769]
[1763298128156,0.66,140.23,140.2,7.13266761]
[1763298128361,0.66,140.23,140.2,24.96433665]
[1763298128660,29.77999631,140.28,140.2,24.96433665]
[1763298128865,0.66,140.24,140.2,24.96433665]
[1763298138281,0.66,140.24,140.2,7.13266761]
[1763298138486,30.44196862,140.24,140.13,9.78882769]
[1763298138663,51.87589853,140.24,140.12,35.68166103]
[1763298138870,0.68,140.23,140.12,35.68166103]
[1763298139192,22.11546139,140.23,140.15,22.6512]
[1763298139687,0.68,140.22,140.15,22.6512]
[1763298140590,0.68,140.22,140.16,24.97146118]
[1763298142196,7.81166154,140.22,140.16,24.97146118]
[1763298142601,0.68,140.21,140.16,24.97146118]
[1763298147680,0.68,140.21,140.17,9.78882769]
[1763298147989,0.68,140.23,140.17,9.78882769]
[1763298148701,0.68,140.23,140.18,24.96789841]
[1763298153997,0.68,140.23,140.18,7.13368526]
[1763298154200,7.81120151,140.23,140.17,7.13408782]
[1763298154672,0.68,140.22,140.17,7.13408782]
[1763298155076,7.81172754,140.22,140.16,24.97093321]
[1763298155502,0.68,140.21,140.16,24.97093321]
[1763298157305,7.81221069,140.21,140.16,24.97093321]
[1763298157598,7.81221069,140.21,140.16,7.13470319]
[1763298157795,0.68,140.2,140.16,7.13470319]
[1763298162303,0.68,140.2,140.16,24.97146118]
[1763298191345,0.68,140.2,140.16,7.13470319]
[1763298191535,12.60293001,140.2,140.11,9.78882769]
[1763298191730,22.6512,140.17,140.1,7.13775874]
[1763298192033,108.98878333,140.16,140.1,7.13775874]
[1763298192350,4.78636474,140.15,140.07,7.23916901]
[1763298192554,108.98636474,140.14,140.07,7.23916901]
[1763298192724,104.91,140.14,140.07,7.23916901]
[1763298192924,5.48586263,140.13,140.07,0.1]
[1763298193231,7.13673993,140.12,140.07,0.1]
[1763298193437,7.84673993,140.12,140.07,0.1]
[1763298193746,0.72,140.11,140.07,0.1]
[1763298200134,104.2,140.14,140.08,22.6512]
[1763298200349,0.69,140.12,140.08,22.6512]
[1763298201353,0.69,140.12,140.09,7.13826825]
[1763298201534,0.69,140.12,140.09,24.98393889]
[1763298201853,0.69,140.12,140.07,0.1]
[1763298201854,7.82682065,140.12,140.07,0.1]
[1763298202150,22.6512,140.09,140.07,0.1]
[1763298202357,0.69,140.08,140.07,0.1]
[1763298203948,7.82877784,140.08,140.07,0.1]
[1763298207733,17.61760553,140.08,140.07,0.1]
[1763298208052,22.6512,140.06,140.05,0.1]
[1763298208451,23.3412,140.06,140.05,0.1]
[1763298209950,40.26982491,140.06,140.05,0.1]
[1763298210264,113.98882769,140.05,140.04,0.1]
[1763298210448,22.6512,140.02,140.01,0.1]
[1763298210955,104.2,140.05,140.01,0.41]
[1763298211130,0.69,140.06,140.01,0.41]
[1763298211131,0.69,140.06,140.02,0.31]
[1763298211333,0.69,140.06,140.01,0.1]
[1763298211542,0.69,140.06,140.01,0.41]
[1763298212064,0.69,140.06,140.02,7.14183688]
[1763298213352,7.82984463,140.06,140.02,7.14183688]
[1763298213859,50.28653138,140.09,140.01,0.1]
[1763298213860,7.83038975,140.05,140.01,0.1]
[1763298214064,0.69,140.05,140.01,0.1]
[1763298214254,0.69,140.04,140.01,0.1]
[1763298214759,0.69,140.06,140.02,0.31]
[1763298215957,0.69,140.06,140.03,7.14132685]
[1763298216360,0.69,140.06,140.02,7.14164401]
[1763298219143,0.69,140.06,140.01,18.26564558]
[1763298219144,7.82985995,140.06,140.01,7.24217622]
[1763298219343,7.82985995,140.06,140.01,7.55217622]
[1763298219573,0.69,140.05,140.01,7.55217622]
[1763298220067,0.69,140.05,140.01,7.24217622]
[1763298220654,126.8512,140.07,140.01,7.24217622]
[1763298220849,126.8512,140.07,140.02,0.31]
[1763298221166,104.2,140.07,140.02,0.31]
[1763298221344,0.69,140.07,140.02,0.31]
[1763298223059,0.69,140.07,140.03,7.14132685]
[1763298223457,7.82943205,140.07,140.02,7.14179695]
[1763298223659,22.6512,140.07,140.03,0.31]
[1763298223869,0.69,140.07,140.03,0.31]
[1763298225073,0.69,140.07,140.04,7.1408169]
[1763298225784,7.82937336,140.07,140.03,7.14122215]
[1763298225941,7.82937336,140.07,140.01,7.24192152]
[1763298226146,0.69,140.06,140.01,7.24192152]
[1763298227363,7.8299258,140.06,140.01,0.1]
[1763298227866,0.69,140.05,140.01,0.1]
[1763298230876,0.69,140.05,140.01,0.41]
[1763298231490,0.69,140.05,140.02,7.14183688]
[1763298233873,7.13943772,140.07,140.01,7.24234697]
[1763298234079,0.69,140.06,140.02,0.31]
[1763298234268,0.69,140.06,140.01,7.55234697]
[1763298236201,22.6512,140.07,140.02,0.31]
[1763298236394,0.69,140.07,140.02,0.31]
[1763298237596,0.69,140.07,140.03,7.14132685]
[1763298240295,0.69,140.07,140.03,7.45132685]
[1763298240670,5.44051387,140.08,140.04,0.31]
[1763298240870,0.69,140.08,140.04,0.31]
[1763298241981,0.69,140.08,140.04,7.1406173]
[1763298242183,0.69,140.08,140.04,7.4506173]
[1763298242569,0.69,140.08,140.04,0.31]
[1763298242772,0.69,140.08,140.03,7.45102939]
[1763298244273,0.69,140.08,140.04,0.31]
[1763298244581,0.69,140.08,140.03,25.30434653]
[1763298245994,0.69,140.08,140.04,0.31]
[1763298246571,5.94630237,140.14,140.08,22.6512]
[1763298246772,0.69,140.14,140.08,22.6512]
[1763298246967,0.69,140.14,140.09,0.31]
[1763298247679,5.45520497,140.16,140.09,32.75002769]
[1763298247876,0.69,140.17,140.09,32.75002769]
[1763298248092,0.69,140.17,140.1,0.31]
[1763298248283,5.45520497,140.18,140.1,10.09882769]
[1763298248479,0.69,140.18,140.11,0.31]
[1763298248682,0.69,140.18,140.12,24.97858977]
[1763298249126,0.69,140.18,140.13,0.31]
[1763298251724,7.82371948,140.18,140.1,0.31]
[1763298251896,7.82371948,140.18,140.05,22.6512]
[1763298252102,0.69,140.17,140.09,22.9612]
[1763298253429,7.82437661,140.17,140.1,25.29215559]
[1763298253801,0.67,140.16,140.1,25.29215559]
[1763298255397,0.67,140.16,140.1,7.44775874]
[1763298255599,7.80492345,140.16,140.1,22.6512]
[1763298256010,0.67,140.15,140.1,22.6512]
[1763298256213,0.67,140.15,140.1,7.1376785]
[1763298256433,0.67,140.15,140.1,7.4476785]
[1763298256639,0.67,140.15,140.1,25.29207535]
[1763298260844,30.45646152,140.15,140.09,7.13791376]
[1763298261225,0.67,140.14,140.09,7.13791376]
[1763298261639,7.80581211,140.14,140.08,0.31]
[1763298262013,0.67,140.14,140.08,0.31]
[1763298262419,0.67,140.13,140.08,0.31]
[1763298263334,0.67,140.13,140.09,7.13826825]
[1763298263748,0.67,140.13,140.09,24.98393889]
[1763298264042,0.67,140.13,140.09,25.29393889]
[1763298265836,0.67,140.13,140.09,7.13826825]
[1763298266834,7.80624077,140.13,140.09,7.13826825]
[1763298267342,0.67,140.12,140.09,7.13826825]
[1763298267654,7.80683367,140.12,140.05,32.44002769]
[1763298267956,48.29988351,140.12,140.02,24.99548725]
[1763298268129,0.67,140.11,140.02,24.99548725]
[1763298268442,0.67,140.11,140.03,0.31]
[1763298268845,0.67,140.11,140.03,10.09882769]
[1763298269028,7.13775874,140.1,140.04,7.1408169]
[1763298269224,7.80743505,140.11,140.04,24.99285917]
[1763298269426,0.67,140.1,140.05,0.31]
[1763298270143,0.67,140.1,140.04,24.99285917]
[1763298270325,0.61542001,140.1,140.04,24.99285917]
[1763298270531,0.61542001,140.1,140.02,10.14882769]
[1763298271325,7.13826825,140.09,140.03,7.14132685]
[1763298271646,7.13826825,140.09,140.03,25.35464399]
[1763298272533,0.67,140.08,140.03,25.35464399]
[1763298276364,0.67,140.08,140.02,9.78882769]
[1763298276530,0.67,140.08,140.03,7.50128638]
[1763298277936,7.80880547,140.08,140.03,7.14128638]
[1763298278421,0.67,140.07,140.04,0.36]
[1763298279038,0.67,140.07,140.03,24.99460352]
[1763298279253,0.67,140.07,140.03,25.35460352]
[1763298279558,0.67,140.1,140.04,0.36]
[1763298279852,0.67,140.13,140.07,24.98750623]
[1763298280050,27.6246907,140.17,140.07,24.98750623]
[1763298280051,11.89621582,140.16,140.07,24.98750623]
[1763298280224,0.67,140.14,140.08,0.36]
[1763298282163,0.67,140.14,140.09,7.13826825]
[1763298282460,0.67,140.14,140.09,24.98393889]
[1763298282786,0.67,140.14,140.09,25.34393889]
[1763298283466,0.67,140.14,140.09,24.98393889]
[1763298283760,0.67,140.14,140.1,0.36]
[1763298284342,0.67,140.14,140.11,7.1372493]
[1763298284643,0.67,140.14,140.09,7.49778586]
[1763298285938,0.67,140.14,140.1,0.36]
[1763298286769,0.67,140.14,140.09,7.49778586]
[1763298286972,0.67,140.14,140.09,7.13778586]
[1763298287173,7.80593931,140.14,140.09,7.13778586]
[1763298287554,0.68,140.13,140.06,40.86039494]
[1763298288291,7.81645645,140.13,140.07,7.13928749]
[1763298288598,0.68,140.12,140.07,7.13928749]
[1763298289451,0.68,140.12,140.07,7.49928749]
[1763298289652,7.8167438,140.12,140.07,7.13928749]
[1763298290090,0.68,140.11,140.07,7.13928749]
[1763298290596,0.68,140.11,140.06,7.13966753]
[1763298291359,7.13775874,140.1,140.04,24.99220721]
[1763298291792,0.68,140.09,140.04,24.99220721]
[1763298292289,0.68,140.09,140.04,25.35220721]
[1763298292891,7.81828564,140.09,140.04,7.1408169]
[1763298293369,0.68,140.08,140.04,7.1408169]
[1763298294685,0.68,140.08,140.03,18.21262662]
[1763298294888,0.68,140.08,140.03,17.85262662]
[1763298295079,0.68,140.08,140.04,0.36]
[1763298296779,0.68,140.08,140.05,7.14030703]
[1763298298007,0.68,140.08,140.03,7.14118722]
[1763298298375,0.68,140.08,140.04,0.36]
[1763298299111,0.68,140.08,140.05,7.14030703]
[1763298300510,4.78093994,140.11,140.05,7.14030703]
[1763298300511,0.68,140.11,140.06,0.36]
[1763298301199,0.68,140.11,140.07,7.13928749]
[1763298301521,7.81729035,140.11,140.07,7.13928749]
[1763298301912,0.68,140.1,140.07,7.13928749]
[1763298302502,0.68,140.1,140.06,7.13979722]
[1763298302699,0.68,140.1,140.06,7.49979722]
[1763298302999,4.78298679,140.13,140.06,24.98929029]
[1763298303199,0.68,140.12,140.07,0.36]
[1763298304628,7.8168266,140.12,140.05,9.78882769]
[1763298304793,7.8168266,140.12,140.06,7.49946192]
[1763298304998,0.68,140.11,140.06,7.49946192]
[1763298305200,0.68,140.11,140.06,7.13946192]
[1763298305820,0.68,140.11,140.06,24.98895499]
[1763298305994,0.68,140.11,140.06,25.34895499]
[1763298306395,0.68,140.11,140.07,0.36]
[1763298306611,0.68,140.11,140.08,24.98572244]
[1763298307012,4.79307378,140.14,140.09,0.36]
[1763298307209,0.68,140.14,140.09,0.36]
[1763298307517,0.68,140.13,140.09,0.36]
[1763298308416,0.68,140.13,140.1,7.13775874]
[1763298309213,0.68,140.13,139.95,0.1]
[1763298309214,33.55992914,140.01,139.95,0.1]
[1763298309425,33.55992914,140.01,139.8,21.69744849]
[1763298309426,1.99999999,139.81,139.8,21.69744849]
[1763298309726,1.99999999,139.77,139.72,0.69]
[1763298309899,1.99999999,139.75,139.72,0.69]
[1763298310224,6.78255818,139.74,139.72,21.35126172]
[1763298310396,1.99999999,139.71,139.69,0.69]
[1763298310717,1.99999999,139.72,139.66,0.69]
[1763298310913,1.99999999,139.71,139.66,0.69]
[1763298311704,1.99999999,139.72,139.66,0.69]
[1763298311906,1.99999999,139.72,139.67,22.6512]
[1763298312104,1.99999999,139.72,139.68,23.3412]
[1763298312308,4.71229935,139.71,139.68,23.3412]
[1763298312527,4.71145557,139.7,139.69,0.69]
[1763298313024,1.99999999,139.74,139.69,0.69]
[1763298313316,4.71214665,139.73,139.69,0.69]
[1763298313521,4.70117961,139.72,139.69,0.69]
[1763298313708,1.99999999,139.75,139.69,0.69]
[1763298313907,4.70145738,139.74,139.69,0.69]
[1763298314104,4.70145738,139.73,139.71,22.6512]
[1763298314307,4.70145738,139.72,139.68,46.89818837]
[1763298314508,4.70145738,139.71,139.7,29.80939613]
[1763298315130,4.70145738,139.71,139.7,7.15819613]
[1763298316329,4.70145738,139.71,139.69,7.15847468]
[1763298316497,1.99999999,139.73,139.69,22.6512]
[1763298316700,4.66926838,139.72,139.69,22.6512]
[1763298316901,1.99999999,139.73,139.69,22.6512]
[1763298317125,4.67043135,139.72,139.69,22.6512]
[1763298317431,4.67043135,139.71,139.69,22.6512]
[1763298317615,4.66212481,139.7,139.69,22.6512]
[1763298317835,4.6620265,139.7,139.69,22.6512]
[1763298318403,4.6620265,139.7,139.69,7.15870856]
[1763298320403,4.6620265,139.7,139.67,25.05869664]
[1763298320626,1.99999999,139.72,139.69,0.68]
[1763298320925,4.64188133,139.71,139.69,0.68]
[1763298321112,1.99999999,139.73,139.69,0.68]
[1763298321306,4.64224045,139.72,139.69,0.68]
[1763298321507,1.99999999,139.73,139.69,0.68]
[1763298321722,4.63743367,139.72,139.69,0.68]
[1763298322041,1.99999999,139.77,139.7,22.6512]
[1763298322350,1.99999999,139.76,139.73,25.04830744]
[1763298322532,1.99999999,139.76,139.73,25.72830744]
[1763298324432,1.99999999,139.76,139.67,21.50152302]
[1763298324433,25.33119999,139.75,139.55,50.1]
[1763298324639,1.99999999,139.66,139.56,0.68]
[1763298324822,1.99999999,139.68,139.56,0.68]
[1763298325155,1.99999999,139.69,139.56,0.68]
[1763298325461,21.51848796,139.68,139.59,22.6512]
[1763298325759,23.51231579,139.74,139.67,22.6512]
[1763298326045,1.99999999,139.74,139.67,22.6512]
[1763298326249,1.99999999,139.73,139.68,0.68]
[1763298326461,1.99999999,139.71,139.67,7.15963844]
[1763298326619,1.99999999,139.79,139.71,9.78882769]
[1763298326819,2.67999999,139.79,139.71,9.78882769]
[1763298327017,2.67999999,139.79,139.72,0.68]
[1763298327234,2.67999999,139.78,139.72,21.49844136]
[1763298327432,1.99999999,139.76,139.7,22.6512]
[1763298327641,2.67999999,139.77,139.7,22.6512]
[1763298327865,1.99999999,139.76,139.7,22.6512]
[1763298328347,1.99999999,139.73,139.67,61.53764086]
[1763298328554,1.99999999,139.73,139.68,21.50614717]
[1763298328852,2.67999999,139.73,139.67,84.18884086]
[1763298329017,2.67999999,139.73,139.67,105.69652985]
[1763298329444,1.99999999,139.72,139.67,105.69652985]
[1763298330048,1.99999999,139.72,139.67,105.01652985]
[1763298330229,2.67999999,139.72,139.67,105.69652985]
[1763298330428,2.67999999,139.74,139.69,25.05547998]
[1763298330836,0.68,139.73,139.69,25.05547998]
[1763298331345,1.99999999,139.72,139.69,25.05547998]
[1763298331746,1.99999999,139.74,139.69,25.05547998]
[1763298332052,1.99999999,139.74,139.7,0.68]
[1763298332428,2.67999999,139.74,139.71,25.0518932]
[1763298332746,1.99999999,139.74,139.71,25.0518932]
[1763298332924,2.67999999,139.74,139.71,25.0518932]
[1763298333542,1.99999999,139.75,139.72,0.68]
[1763298333942,1.99999999,139.79,139.72,0.68]
[1763298334143,4.62578977,139.78,139.74,22.6512]
[1763298334449,1.99999999,139.79,139.76,25.04293073]
[1763298334752,4.62883649,139.78,139.76,25.04293073]
[1763298334952,1.99999999,139.79,139.76,25.04293073]
[1763298335337,0.68,139.78,139.76,24.73414626]
[1763298335541,1.99999999,139.79,139.76,24.73414626]
[1763298335850,2.67999999,139.79,139.76,24.73414626]
[1763298336048,0.68,139.79,139.76,24.73414626]
[1763298336353,2.67999999,139.79,139.76,24.73414626]
[1763298338250,2.67999999,139.79,139.76,6.84633859]
[1763298338646,1.99999999,139.79,139.76,24.73414626]
[1763298339258,2.67999999,139.79,139.76,24.73414626]
[1763298339838,2.67999999,139.79,139.75,7.15550017]
[1763298340158,1.99999999,139.75,139.69,0.68]
[1763298340355,1.99999999,139.74,139.7,25.05368646]
[1763298340663,2.67999999,139.74,139.7,25.73368646]
[1763298340839,2.67999999,139.76,139.71,0.68]
[1763298341043,1.99999999,139.78,139.72,9.78882769]
[1763298341248,4.64369531,139.77,139.72,9.78882769]
[1763298341436,1.99999999,139.77,139.73,0.68]
[1763298342070,0.68,139.76,139.49,35.74468438]
[1763298342383,1.99999999,139.72,139.66,0.68]
[1763298342883,2.67999999,139.71,139.66,0.68]
[1763298343173,1.99999999,139.7,139.66,0.68]
[1763298343752,2.67999999,139.7,139.66,0.68]
[1763298344157,2.67999999,139.7,139.67,25.05906779]
[1763298344750,0.68,139.7,139.67,25.05906779]
[1763298344950,2.67999999,139.7,139.67,25.05906779]
[1763298345545,1.99999999,139.73,139.68,0.66]
[1763298345749,4.65690358,139.72,139.68,0.66]
[1763298345984,2.67999999,139.76,139.69,22.6512]
[1763298346184,6.65753445,139.75,139.69,22.6512]
[1763298346492,1.99999999,139.74,139.7,0.66]
[1763298347439,1.99999999,139.74,139.71,25.0518932]
[1763298348058,2.67999999,139.74,139.71,25.0518932]
[1763298348255,4.677636,139.73,139.71,25.0518932]
[1763298348483,2.67999999,139.74,139.71,25.0518932]
[1763298348652,4.67695786,139.73,139.71,25.0518932]
[1763298348848,0.68,139.73,139.68,17.89698443]
[1763298349057,1.99999999,139.69,139.67,7.15973365]
[1763298349360,1.99999999,139.68,139.61,0.66]
[1763298349554,1.99999999,139.67,139.63,17.9040937]
[1763298349961,2.67999999,139.67,139.63,17.9040937]
[1763298350379,4.69351236,139.66,139.63,17.9040937]
[1763298350547,2.67999999,139.67,139.63,17.9040937]
[1763298350765,4.69337275,139.66,139.63,17.9040937]
[1763298350963,2.67999999,139.67,139.63,17.9040937]
[1763298351162,4.69350894,139.66,139.63,17.9040937]
[1763298351469,4.69350894,139.65,139.63,17.9040937]
[1763298351668,4.70385768,139.64,139.63,17.9040937]
[1763298352886,7.98161394,139.69,139.63,18.5640937]
[1763298353169,1.99999999,139.68,139.63,18.5640937]
[1763298353673,1.99999999,139.69,139.65,25.06265664]
[1763298353855,22.6512,139.7,139.65,25.06265664]
[1763298353856,1.99999999,139.7,139.65,25.06265664]
[1763298354174,1.99999999,139.68,139.65,25.06265664]
[1763298354578,0.68,139.67,139.65,25.06265664]
[1763298355274,1.99999999,139.65,139.63,7.16170716]
[1763298355482,1.99999999,139.65,139.63,25.72616895]
[1763298356077,7.98161394,139.68,139.63,25.06616895]
[1763298356267,1.99999999,139.67,139.64,0.66]
[1763298356467,1.99999999,139.66,139.64,0.66]
[1763298358372,2.67999999,139.68,139.65,25.06265664]
[1763298359079,1.99999999,139.67,139.65,25.06265664]
[1763298360786,7.98161394,139.7,139.66,0.66]
[1763298360970,1.99999999,139.68,139.65,61.52645184]
[1763298361383,0.68,139.69,139.65,61.52645184]
[1763298361676,1.99999999,139.68,139.65,61.52645184]
[1763298362591,0.68,139.69,139.65,61.52645184]
[1763298362786,1.99999999,139.68,139.65,61.52645184]
[1763298363296,0.68,139.69,139.65,61.52645184]
[1763298363668,2.67999999,139.69,139.65,61.52645184]
[1763298364767,1.99999999,139.68,139.65,61.52645184]
[1763298365166,1.99999999,139.7,139.66,0.66]
[1763298365368,0.68,139.72,139.66,0.66]
[1763298365369,1.99999999,139.72,139.66,0.66]
[1763298365589,1.99999999,139.71,139.66,0.66]
[1763298366892,1.99999999,139.71,139.67,60.85773607]
[1763298367098,1.99999999,139.7,139.67,60.85773607]
[1763298367282,1.99999999,139.7,139.68,0.66]
[1763298367907,1.99999999,139.73,139.68,0.66]
[1763298368079,1.99999999,139.72,139.68,0.66]
[1763298368872,1.99999999,139.73,139.69,25.05547998]
[1763298369299,2.67999999,139.73,139.69,25.71547998]
[1763298369491,1.99999999,139.72,139.69,25.71547998]
[1763298369896,0.68,139.72,139.69,7.15870856]
[1763298370083,1.99999999,139.7,139.69,7.15870856]
[1763298370802,1.99999999,139.7,139.69,7.81870856]
[1763298371001,1.99999999,139.7,139.69,25.71547998]
[1763298371199,27.67469845,139.78,139.69,25.71547998]
[1763298371200,1.99999999,139.73,139.69,25.71547998]
[1763298371379,1.99999999,139.72,139.7,0.66]
[1763298372908,0.68,139.74,139.7,0.66]
[1763298373204,0.68,139.74,139.71,7.15768377]
[1763298373205,1.99999999,139.72,139.71,7.15768377]